[Event "45th FIDE Womens Olympiad 2024"]
[Site "Budapest"]
[Date "2024.09.16"]
[Round "6.53"]
[White "Atalik, Ekaterina"]
[Black "Unuk, Laura"]
[Result "1/2-1/2"]
[ECO "D13"]
[WhiteElo "2381"]
[BlackElo "2316"]
[Annotator "TA"]
[PlyCount "95"]
[EventDate "2024.09.05"]
[EventType "team-tourn"]
[EventCountry "HUN"]
[SourceTitle "playchess.com"]
[Source "ChessBase"]
[SourceQuality "1"]
[WhiteTeam "Turkiye"]
[BlackTeam "Slovenia"]
[BlackTeamCountry "SLO"]
[TimeControl "40/5400+30:1800+30"]

{[%evp 18,95,0,2,16,0,2,0,9,-2,11,10,12,4,10,13,16,18,14,6,12,14,18,29,97,67,66,77,71,70,92,87,108,43,43,0,100,87,88,81,76,67,64,65,69,0,0,0,0,0,0,0,0,0,0,0,0,0,0,0,0,0,0,0,0,0,0,0,0,0,0,0,0,0,0,0,0,0,0,0]} 1. d4 d5 2. c4 c6 3. Nf3 Nf6 4. cxd5 cxd5 5. Nc3 Nc6 6. Bf4 a6 7. e3 Bf5 8. Bd3 Bxd3 9. Qxd3 e6 10. O-O Bd6 11. Bg5 h6 12. Bh4 O-O 13. Rfc1 Be7 14. Bxf6 Bxf6 15. Na4 Be7 16. Nc5 Bxc5 17. Rxc5 Qb6 18. Qc3 a5 19. Ne5 Nxe5 20. dxe5 f6 (20... Rfb8 $11 {keeps the balance.}) 21. Rc1 fxe5 22. Qxe5 {[#] Threatens to win with Rc7.} Rf5 23. Qd4 {aiming for Rc8+.} Raf8 24. f3 {[%cal Oc5d5]} Qa6 25. Kf2 {White is more active.} (25. Qd2 $16) 25... Qd6 $14 26. Kg1 (26. Rxa5 $2 {perishes.} Qxh2 27. Qd1 Rxf3+ 28. Qxf3 Qh4+ (28... Rxf3+ $2 29. Kxf3 h5 30. Ra4 $17) 29. Ke2 Rxf3 30. Kxf3 Qf6+ 31. Kg3 Qxb2 32. Rc8+ Kh7 $19) (26. Rc7 $14 Rg5 27. g3 (27. Rxb7 $2 {is the wrong capture.} Qxh2 28. Rg1 Rxf3+ 29. Kxf3 Qxg1 $19)) 26... Qa6 $1 $16 27. R1c2 a4 28. a3 R5f7 29. Rc8 Rxc8 30. Rxc8+ Rf8 31. Rxf8+ (31. Rc2 $14) 31... Kxf8 $14 {[%mdl 4096] Endgame. KQ-KQ. The position is equal.} 32. h4 Qc6 33. Qf4+ Ke7 34. Qe5 Kf7 35. Kh2 b5 36. Qf4+ Ke7 37. Qd4 Kf7 38. Kg3 Qc4 39. Qa7+ Kf6 40. Qb8 Kf7 {Repels Qf8+} 41. h5 Qe2 {[%csl LRb2,LRe3]} 42. Qc7+ Kf8 43. Qf4+ Ke7 44. Qc7+ Kf8 45. Qd8+ Kf7 46. Qd7+ Kf6 47. Qd8+ Kf7 48. Qc7+ {Weighted Error Value: White=0.10 (very precise) /Black=0.05 (flawless) .  Mistake:       	White=3     	Black=1      Inaccurate:     	White=1     	---        OK:         	White=12    	Black=20     Best:        	---       	Black=2      Strong:       	---       	Black=1} 1/2-1/2

[Event "45th FIDE Womens Olympiad 2024"]
[Site "Budapest"]
[Date "2024.09.16"]
[Round "6.54"]
[White "Urh, Zala"]
[Black "Yildiz Kadioglu, Betul Cemre"]
[Result "1/2-1/2"]
[ECO "D31"]
[WhiteElo "2251"]
[BlackElo "2314"]
[Annotator "RC"]
[PlyCount "93"]
[EventDate "2024.09.05"]
[EventType "team-tourn"]
[EventCountry "HUN"]
[SourceTitle "playchess.com"]
[Source "ChessBase"]
[SourceQuality "1"]
[WhiteTeam "Slovenia"]
[BlackTeam "Turkiye"]
[WhiteTeamCountry "SLO"]
[TimeControl "40/5400+30:1800+30"]

1. d4 d5 2. c4 e6 3. Nf3 a6 4. cxd5 exd5 5. Nc3 h6 6. Bf4 Nf6 7. e3 Bd6 8. Ne5 Qe7 9. Bg3 Bf5 10. Bd3 Bxd3 11. Qxd3 c6 12. O-O O-O 13. Rae1 Nbd7 14. Qf5 Rfe8 15. f4 Bb4 16. Qh3 Bxc3 17. bxc3 Nxe5 18. fxe5 Ne4 19. Bh4 Qe6 20. Qxe6 fxe6 21. Rc1 b5 22. Rc2 Rf8 23. Rf3 Rf7 24. Kf1 Rc8 25. Ke2 c5 26. Be1 Rfc7 27. a3 cxd4 28. exd4 Rc4 29. Rd3 Kf7 30. Rf3+ Ke8 31. Rd3 R8c7 32. Kd1 Kf7 33. Rf3+ Kg6 34. Rc1 a5 35. Rb1 Nxc3+ 36. Bxc3 Rxc3 37. Rxb5 a4 38. Rb6 Rxf3 39. gxf3 Kf5 40. Rb4 Ra7 41. Ke2 Kf4 42. Rb6 Kf5 43. Kd3 g5 44. Rb8 Kg6 45. Rb6 Kf5 46. Rb8 Kg6 47. Rb6 1/2-1/2

[Event "45th FIDE Womens Olympiad 2024"]
[Site "Budapest"]
[Date "2024.09.16"]
[Round "6.55"]
[White "Ozturk Orenli, Kubra"]
[Black "Janzelj, Lara"]
[Result "0-1"]
[ECO "D17"]
[WhiteElo "2262"]
[BlackElo "2193"]
[Annotator "TA"]
[PlyCount "92"]
[EventDate "2024.09.05"]
[EventType "team-tourn"]
[EventCountry "HUN"]
[SourceTitle "playchess.com"]
[Source "ChessBase"]
[SourceQuality "1"]
[WhiteTeam "Turkiye"]
[BlackTeam "Slovenia"]
[BlackTeamCountry "SLO"]
[TimeControl "40/5400+30:1800+30"]

{[%evp 20,92,11,-4,29,25,35,25,41,25,87,7,63,55,95,20,57,31,25,0,0,-4,45,-78,0,-101,-106,-131,-132,-457,-223,-204,-203,-208,-205,-219,-214,-207,-198,-256,-247,-261,-256,-279,-267,-375,0,0,19,-234,-163,-167,-162,-273,-275,-447,-418,-1037,-1020,-871,-670,-684,0,-1223,-1127,-1196,-1222,-1338,-1310,-29991,-29992,-29992,-29993,-29993,-29994]} 1. d4 d5 2. c4 c6 3. Nf3 {[%cal Bg1f3,Bf3e5,Be5c4,Bc4e3,Be3f5][%mdl 32]} Nf6 4. Nc3 dxc4 5. a4 Bf5 6. Ne5 Nbd7 7. Nxc4 Qc7 8. g3 e5 9. dxe5 Nxe5 10. Bf4 Nfd7 11. Bg2 g5 12. Ne3 (12. Nxe5 {simplifies} gxf4 13. Nxd7 Qxd7 14. Qxd7+ Bxd7 15. gxf4 Be7 16. e3) 12... gxf4 13. Nxf5 O-O-O {[%cal Of4f3] White has an edge.} 14. Qc2 (14. gxf4 Nc5 15. Qc2 Nc4 $11) 14... Bc5 (14... Kb8 $11) 15. O-O-O (15. gxf4 $16 Nc4 16. e3) 15... fxg3 (15... Bxf2 $11 16. gxf4 Ng4) 16. hxg3 $14 Kb8 {[%cal Od7f6]} 17. e3 (17. f4 $1 $16 {[%cal Oc3e4] Ne4! is the strong threat.} Ng4 18. Ne4) 17... Qa5 18. Ne4 {aiming for f4.} Bb4 19. Kb1 (19. f4 $5 Ng4 20. Rd4 $16) 19... Nb6 20. Ned6 Rd7 (20... Qxa4 $11 21. Qxa4 Nxa4) 21. Rd4 (21. f4 $14 {keeps the upper hand.} Rhd8 22. Nxb7 (22. fxe5 Qxe5 23. Rxh7 Bxd6 $11) 22... Rxd1+ 23. Rxd1 Rxd1+ 24. Qxd1 Kxb7 25. fxe5 Qxa4 26. Qxa4 Nxa4 27. Nh6 (27. Nd4 Nb6 $14)) 21... Rhd8 (21... Bc5 $1 $17 {[%cal Oh8d8] Hoping for ...Rhd8!} 22. Ne4 (22. Nc4 $2 Nbxc4 23. Rxd7 Qb4 $19) 22... Bxd4 23. exd4 Nec4) 22. Rhd1 (22. Ne4 $11) 22... Bc5 $1 $17 23. R4d2 (23. Nc4 $2 Nbxc4 24. Rxd7 Rxd7 $19 (24... Na3+ 25. bxa3 Rxd7 26. Nd4 $15)) 23... Qb4 $1 {Dodges Qe4} (23... Nxa4 24. f4 Ng4 25. Nc4 (25. Nxb7 $2 Nc3+ 26. Qxc3 Qxc3 $19) 25... Rxd2 26. Nxa5 $16) 24. Ne4 {[%mdl 8192]} (24. a5 $17 {is more resistant.} Nbc4 (24... Rxd6 $2 25. Nxd6 Bxd6 26. axb6 $18) (24... Qxa5 25. f4 $17) (24... Bxd6 25. axb6 axb6 26. Qc3 $15) 25. Nxc4 Nxc4 26. Rxd7 Rxd7 27. Kc1 Rxd1+ 28. Kxd1) 24... Nec4 (24... Nxa4 25. Rxd7 Rxd7 26. Rxd7 Nxd7 27. Qd2 $17) (24... Nbc4 $142 25. Rxd7 Rxd7) 25. Rxd7 $19 Rxd7 26. Kc1 Rxd1+ 27. Kxd1 Nxb2+ 28. Ke2 N6xa4 (28... N2xa4 29. Kf1 $19) 29. g4 (29. Kf1 $142) 29... Qb5+ 30. Kf3 a5 31. Kg3 Bb6 32. Ned6 (32. Qc1 $142) 32... Qe5+ $2 ({Black should play} 32... Bc7 $19 33. f4 Bxd6 34. Nxd6 Qc5) 33. f4 $11 Qe6 (33... Qc3 $5 34. Qe4 $8 Nc5 35. Qe8+ Ka7 $16) 34. Ne4 {[%mdl 8192] [#] Wards off Bc5} (34. Bxc6 $1 $11 Nc4 (34... bxc6 35. Qxc6 Nc5 36. Qxb6+ Ka8 37. Qxa5+ Kb8 38. Qxc5 Qd7 39. Qb6+ Ka8 40. Nb5) 35. Qxc4 Qxc4 36. Nxc4 bxc6 37. g5) 34... h5 $1 35. Ng5 Qg6 {And now ...hxg4 would win.} 36. Qe4 {[#]} (36. gxh5 $142 Qxh5 37. Bxc6 bxc6 38. Qxc6) 36... f6 $1 $19 37. Qe7 $2 (37. Nd4 {might work better.} Qxe4 38. Nxe4 hxg4 39. Nc2) 37... fxg5 38. Nd6 (38. Qxg5 $142 Qxg5 39. fxg5 Bc7+ 40. Kh4 hxg4 41. Kxg4) 38... gxf4+ 39. Kh2 Bc7 {...fxe3 would now be deadly.} (39... Bxe3 40. Qxb7#) 40. Ne8 Bb6 ({Stronger than} 40... fxe3+ 41. Qxc7+ Ka7 42. Qxa5+ Kb8 43. Qe5+ Ka8 44. gxh5 $11 (44. Qa5+ Kb8 $11)) 41. Nd6 $1 {[%csl Gd6][%cal Re7b7] [#]} Nc5 ({Inferior is} 41... Bxe3 42. Qxb7#) 42. Qf8+ Ka7 43. Bf1 Nbd3 ({Not} 43... Qxg4 44. Nc8+ $17) 44. e4 Qxg4 {Black mates.} 45. Nc8+ Ka6 46. Nxb6 Qh4+ {Weighted Error Value: White=0.85/Black=0.63.  Loses game:     	White=2     	---        Missed win:     	---       	Black=1      Mistake:       	White=9     	Black=5      Inaccurate:     	White=1     	Black=3      OK:         	White=7     	Black=9      Best:        	White=4     	Black=3      Strong:       	---       	Black=3} 0-1

[Event "45th FIDE Womens Olympiad 2024"]
[Site "Budapest"]
[Date "2024.09.16"]
[Round "6.56"]
[White "Vidic, Teja"]
[Black "Aydin, Gulenay"]
[Result "0-1"]
[ECO "B80"]
[WhiteElo "2128"]
[BlackElo "2202"]
[Annotator "TA"]
[PlyCount "118"]
[EventDate "2024.09.05"]
[EventType "team-tourn"]
[EventCountry "HUN"]
[SourceTitle "playchess.com"]
[Source "ChessBase"]
[SourceQuality "1"]
[WhiteTeam "Slovenia"]
[BlackTeam "Turkiye"]
[WhiteTeamCountry "SLO"]
[TimeControl "40/5400+30:1800+30"]

{[%evp 15,118,15,39,13,20,0,22,-6,-5,-7,-13,-75,-78,-86,-72,-105,-106,-116,-37,-33,-27,-36,-53,-52,-50,-47,-50,-89,-60,-66,-52,-68,-18,-30,0,-60,-38,-69,-16,-11,-18,-28,-14,-15,0,0,0,0,0,0,0,-25,-28,-145,-138,-146,-148,-122,-94,-190,-116,-164,-133,-137,-141,-117,-132,-129,-135,-125,-129,-219,-208,-165,-156,-293,-288,-271,-228,-1312,-996,-5777,-8222,-29969,-29973,-29974,-29975,-29974,-29976,-29976,-29977,-29976,-29973,-29980,-29981,-29981,-29982,-29981,-29981,-29982,-29983,-29983,-29982,-12840,-9999]} 1. e4 c5 2. Nc3 e6 3. Nge2 Nc6 4. g3 Nf6 5. Bg2 d6 6. d4 cxd4 7. Nxd4 Bd7 8. O-O Be7 9. Nxc6 Bxc6 10. Bf4 O-O 11. e5 {The position is equal.} dxe5 12. Bxe5 Qb6 13. Qe2 (13. Bd4 $11 {keeps the balance.} Qc7 (13... Qxb2 14. a3 $16) 14. Qe2) 13... Bxg2 $17 14. Kxg2 Nd7 {[%cal Od7e5]} (14... Qxb2 $6 15. Rab1 Qa3 16. Rxb7 $11) 15. Bf4 Qxb2 16. Nd5 exd5 (16... Bd8 $17 17. Ne3 e5) 17. Qxe7 $15 Qb5 18. Rab1 Qc6 {[%cal Ob7b6]} 19. Qd6 Nb6 20. Qxc6 bxc6 21. Bc7 Rfc8 22. Bf4 h6 23. h4 Nd7 (23... Re8 $15) 24. Rfe1 $11 Nf8 25. Be5 ({White should play} 25. Rb7 $11) 25... c5 26. f4 Nd7 ({Black should try} 26... Rc6 $15 27. c3 Ra6) 27. Rb7 Nb6 28. Bc7 {[%cal Oe1e7]} Nc4 29. Kf2 a6 30. Re7 Re8 31. Rd7 d4 $36 {[%mdl 2048] Black has some pressure.} 32. f5 Ne3 {...Ng4+ would now be deadly.} 33. Bd6 Nxf5 (33... Nxc2 34. Rxf7 (34. Bxc5 Rab8 $11) 34... Kh8 35. Rxg7 (35. Bxc5 Rac8 $16) (35. Bxc5 Rac8 $16)) 34. Bxc5 (34. Bf4 $1 $11 {remains equal.}) 34... Rac8 $17 35. Rbc7 Rxc7 36. Rxc7 {[%mdl 4096] Endgame. KRB-KRN} h5 37. Kf3 (37. a3 $17) 37... g6 (37... Re1 $1 $19 {Hoping for ...Rf1+.} 38. c3 Rc1 (38... dxc3 $2 39. Bf2 $19)) 38. Kf4 (38. a4 $17) 38... Ng7 {Strongly threatening ...Ne6+.} 39. Rc6 {[%cal Oc5b6]} Ne6+ 40. Kf3 Nxc5 41. Rxc5 {KR-KR} Re3+ 42. Kf4 {[#]} Ra3 $1 43. g4 (43. Rc4 $17 {was worth a try.}) 43... hxg4 $19 ({Not} 43... Rxa2 44. gxh5 gxh5 45. Ke4 $15) 44. Kxg4 Rxa2 45. h5 {[#]} (45. Kf4 $17) 45... gxh5+ $1 46. Kxh5 a5 47. Rc4 (47. Kh6 Kf8 48. Kg5) 47... a4 48. Rxd4 Ra1 {( -> ...Kf8)} ({Weaker is} 48... Rxc2 49. Rxa4 Rc3 50. Kg4 $15) 49. c4 a3 50. Rg4+ Kf8 51. Rg2 a2 52. Kg4 Ke7 53. Kg3 Kd6 54. Kh2 {[#]} Rh1+ $3 {[%mdl 512]} 55. Kxh1 a1=Q+ (55... a1=B $2 {perishes.} 56. Rg5 $18) 56. Kh2 Qh8+ 57. Kg1 Qd4+ 58. Rf2 Ke6 59. Kg2 Qxc4 {Weighted Error Value: White=0.58/Black=0.17 (very precise) .  Mistake:       	White=8     	Black=4      Inaccurate:     	White=5     	Black=2      OK:         	White=7     	Black=13     Best:        	White=4     	Black=6      Strong:       	---       	Black=1} 0-1

[Event "45th FIDE Womens Olympiad 2024"]
[Site "Budapest"]
[Date "2024.09.16"]
[Round "6.57"]
[White "Borosova, Zuzana"]
[Black "Bulmaga, Irina"]
[Result "0-1"]
[ECO "C54"]
[WhiteElo "2205"]
[BlackElo "2406"]
[Annotator "TA"]
[PlyCount "74"]
[EventDate "2024.09.05"]
[EventType "team-tourn"]
[EventCountry "HUN"]
[SourceTitle "playchess.com"]
[Source "ChessBase"]
[SourceQuality "1"]
[WhiteTeam "Slovakia"]
[BlackTeam "Romania"]
[WhiteTeamCountry "SVK"]
[BlackTeamCountry "ROU"]
[TimeControl "40/5400+30:1800+30"]

{[%evp 9,74,0,8,-43,-49,-60,-51,-47,-69,-49,-61,-68,16,8,0,6,-23,-21,39,30,45,29,26,30,45,34,29,0,0,-104,-96,-94,-79,-217,-139,-134,-129,-128,-138,-94,-19,-23,-28,-25,-43,-39,-20,-250,-250,-213,-62,-175,-162,-159,-43,-529,-525,-1764,-2050,-2264,-1987,-4008,-2438,-29983,-29984,-29986,-29983]} 1. e4 e5 2. Nf3 Nc6 3. Bc4 Bc5 4. c3 Nf6 5. d4 exd4 6. b4 (6. e5 $11 d5 7. Be2) 6... Bb6 $15 7. e5 d5 8. exf6 {Black is slightly better.} dxc4 9. Qe2+ Be6 10. b5 $1 {[#]} Nb4 $1 11. cxb4 (11. fxg7 {keeps more tension.} Rg8 12. cxb4 Qf6 13. Qe5) 11... Qxf6 12. O-O O-O 13. a4 c6 (13... a5 $11 14. bxa6 bxa6) 14. bxc6 (14. a5 {seems wilder.} Bc7 15. Qe4 d3 16. bxc6 Rad8 17. Bd2) 14... Bd5 15. Qe5 (15. cxb7 {looks sharper.} Rae8 16. b8=Q Rxe2 17. Qf4) 15... Qxe5 16. Nxe5 {cxb7 is the strong threat.} bxc6 17. Na3 c3 18. Bf4 g5 19. a5 (19. Bg3 $1 $11 {remains equal.} f6 20. Nec4) 19... gxf4 $17 ({Much worse is} 19... Bc7 $6 20. Bg3 $14) 20. axb6 axb6 {White must now prevent ...Rfd8.} 21. Nc2 (21. Nd7 $17 {is a better defense.}) 21... Rxa1 22. Rxa1 f6 23. Nd3 {[#]} Bc4 $1 24. Nce1 {[#]} Rc8 (24... f3 $1 $17 25. gxf3 Re8) 25. Nxf4 c5 26. bxc5 bxc5 27. f3 Bb3 {[%mdl 1024] Black has compensation.} 28. Nfd3 $2 (28. Kf2 $11) 28... c4 $19 29. Nc1 Bd1 {Inhibits Ne2.} (29... Rd8 $19 30. Kf2 d3 31. Nexd3 Rxd3 32. Nxd3 cxd3) 30. Kf2 (30. Na2 $1 $15 Bb3 31. Nxc3 dxc3 32. Rc1) 30... Re8 31. Ra2 Bb3 {Black has more active pieces. The white rooks are passive.} (31... d3 32. Nexd3 cxd3 33. Nxd3 $11) ({Black should try} 31... Rd8 $17 {Threatens to win with ...d3.} 32. Ra1 Rb8) 32. Re2 $2 {[%mdl 8192]} (32. Ra1 $1 $15) 32... Rd8 {aiming for ...d3.} 33. Nxb3 cxb3 34. Nd3 Rb8 35. Re1 b2 36. Nxb2 Rxb2+ 37. Kf1 c2 {Weighted Error Value: White=0.88/Black=0.24 (precise) .  Loses game:     	White=2     	---        Mistake:       	White=3     	Black=5      Inaccurate:     	White=2     	Black=1      OK:         	White=11    	Black=11     Best:        	---       	Black=5      Strong:       	White=1     	Black=1} 0-1

[Event "45th FIDE Womens Olympiad 2024"]
[Site "Budapest"]
[Date "2024.09.16"]
[Round "6.58"]
[White "Voicu-Jagodzinsky, Carmen"]
[Black "Repkova, Eva"]
[Result "0-1"]
[ECO "B01"]
[WhiteElo "2271"]
[BlackElo "2319"]
[Annotator "TA"]
[PlyCount "110"]
[EventDate "2024.09.05"]
[EventType "team-tourn"]
[EventCountry "HUN"]
[SourceTitle "playchess.com"]
[Source "ChessBase"]
[SourceQuality "1"]
[WhiteTeam "Romania"]
[BlackTeam "Slovakia"]
[WhiteTeamCountry "ROU"]
[BlackTeamCountry "SVK"]
[TimeControl "40/5400+30:1800+30"]

{[%evp 11,110,33,36,34,12,9,15,27,29,0,0,0,0,-6,-4,-59,-71,-58,-66,-74,-25,-31,-36,-30,-34,-26,-19,-20,-13,-19,-24,-27,-20,-24,-18,-73,-14,-187,-208,-202,-208,-204,-210,-211,-211,-204,-206,-256,-219,-295,-288,-596,-324,-297,-302,-726,-222,-366,-176,-176,-167,-164,-151,-134,-131,-188,-151,-139,-145,-144,-143,-219,-219,-240,-235,-266,-260,-381,0,-222,-224,-206,-169,-310,-169,-350,-350,-350,-314,-372,-371,-402,-397,-415,-395,-522,-514,-523,-512,-586,-568]} 1. e4 d5 2. exd5 Qxd5 3. Nc3 Qa5 4. d4 Nf6 5. Nf3 Bf5 6. Bc4 e6 7. Bd2 {[%cal Oc3d5]} Bb4 8. a3 Bxc3 9. Bxc3 {The position is equal.} Qb6 10. O-O Nc6 11. a4 {Black must now prevent a5.} a5 12. Ra3 O-O 13. Ne5 (13. Bd3 $11) 13... Nxe5 $1 $15 14. dxe5 Rfd8 15. Qe2 Bg4 (15... Nd5 $17 16. Rb3 Qc6 (16... Nxc3 17. Qf3 $15) 17. Bxd5 exd5 (17... Qxd5 18. Rb5 $15) (17... Rxd5 18. g4 $17)) 16. Qe3 Qxe3 17. fxe3 Nd5 18. Bxd5 Rxd5 19. Bd4 Bf5 20. c4 Rd7 21. Rc3 h6 22. h3 Rad8 23. Rf2 {[#]} (23. Rcc1 $11 {keeps the balance.}) 23... Be4 ({Black should try} 23... c5 $1 $17 {[%cal Rc5d4]} 24. Bxc5 Rd1+ 25. Kh2 R8d2) 24. Kh2 $2 {[#]} (24. Rc1 $11 {and White is okay.}) 24... c5 $1 $19 {[%mdl 512]} 25. Bxc5 Rd2 26. Kg3 {White is weak on the light squares} Rxf2 27. Kxf2 {[%mdl 4096] Endgame. KRB-KRB} Rd2+ 28. Ke1 Rxb2 29. g3 Rg2 30. Bb6 Rxg3 31. h4 $2 (31. Bxa5 {is more resistant.} Rxh3 32. Bb6) 31... Rg1+ 32. Kf2 Rg2+ 33. Ke1 $2 (33. Kf1) 33... Ra2 $2 (33... g5 34. hxg5 h5 (34... Rxg5 $2 35. Bd8 $19) (34... hxg5 $2 35. c5 $19)) 34. Bxa5 (34. Rc1 $142) 34... Rxa4 (34... g5 $142 35. c5 gxh4) 35. Bd8 Ra2 36. c5 Rg2 37. Ra3 Kh7 {Black is more active.} 38. Kf1 (38. Be7 $17 {was worth a try.}) 38... Kg6 39. Ra4 Rg4 40. Rd4 {Prevents Bd3+} h5 41. Rd6 (41. Ke2 $17) 41... Bd5 42. Kf2 Rc4 43. Be7 Kf5 44. Bf8 (44. Rd7 $142) 44... Kg6 (44... Rxh4 $142 {Hoping for ...Rh2+.} 45. Rd7 Kg6 (45... Kxe5 $2 46. Bxg7+ Ke4 47. Rxf7 $17)) 45. Be7 Re4 46. Rb6 Rxe5 {...Re4 would now be deadly.} 47. Rb1 (47. Rb4 $142) 47... f6 (47... Rf5+ $142 48. Ke2 f6) 48. Rg1+ $2 (48. Rb4 {was forced.}) 48... Kf7 49. Bd6 Re4 50. Bg3 Rc4 51. Re1 Bc6 52. Re2 Rxc5 53. e4 e5 {Black is clearly winning.} 54. Re3 Rc4 55. Kf3 Ke6 {Weighted Error Value: White=0.47/Black=0.33.  Loses game:     	White=1     	---        Mistake:       	White=10    	Black=5      Inaccurate:     	White=3     	Black=1      OK:         	White=11    	Black=27     Best:        	White=3     	---        Strong:       	---       	Black=1      Brilliant:      	---       	Black=1} 0-1

[Event "45th FIDE Womens Olympiad 2024"]
[Site "Budapest"]
[Date "2024.09.16"]
[Round "6.59"]
[White "Mrvova, Alena"]
[Black "Lehaci, Miruna-Daria"]
[Result "0-1"]
[ECO "A04"]
[WhiteElo "2121"]
[BlackElo "2180"]
[Annotator "TA"]
[PlyCount "90"]
[EventDate "2024.09.05"]
[EventType "team-tourn"]
[EventCountry "HUN"]
[SourceTitle "playchess.com"]
[Source "ChessBase"]
[SourceQuality "1"]
[WhiteTeam "Slovakia"]
[BlackTeam "Romania"]
[WhiteTeamCountry "SVK"]
[BlackTeamCountry "ROU"]
[TimeControl "40/5400+30:1800+30"]

{[%evp 17,90,0,0,-2,0,0,16,-13,37,52,31,-17,7,0,0,0,0,0,-17,-62,0,0,0,6,0,0,0,-62,-52,-61,-63,-266,-250,-275,-260,-266,-281,-275,-285,-242,-146,-224,-220,-210,-218,-252,-233,-301,-318,-440,-391,-413,-358,-321,-281,-419,-423,-489,-503,-570,-535,-718,-732,-767,-730,-1131,-1099,-922,-906,-1164,-1136,-2482,-2166,-29988,-29989]} 1. e4 c5 2. Nf3 d6 3. d3 Nc6 4. g3 g6 5. Bg2 Bg7 6. O-O e5 7. c3 Nge7 8. a3 O-O 9. b4 a6 10. Be3 b6 11. Nbd2 h6 12. Nc4 {The position is equal.} f5 ({Black should play} 12... Be6 $11) 13. exf5 gxf5 14. Qc1 (14. bxc5 $14 {feels stronger.} bxc5 15. Rb1) 14... Kh7 {[%cal Of5f4]} 15. bxc5 bxc5 16. Nh4 Be6 17. f4 e4 18. Nb2 Na5 (18... exd3 $15 19. Nxd3 Rb8) 19. dxe4 $11 {Hoping for Qc2.} Nb3 {[%csl LRa1,LRc1]} 20. Qc2 Nxa1 21. Rxa1 {[%cal Og3g4]} Rb8 22. exf5 (22. Re1 $11) 22... Nxf5 $15 23. Be4 Qf6 $36 {[%mdl 2048] Black has some pressure. Black is more active.} 24. Nc4 $2 {[#] Loses the game.} d5 $1 $19 {[%cal Od5e4]} (24... Qxc3 25. Qxc3 Bxc3 26. Rc1 $17) 25. Bxf5+ Bxf5 26. Nxf5 Qxf5 (26... dxc4 27. Ne7+ Kh8 28. Ng6+ (28. Bxc5 Qxc3 29. Ng6+ Kg8 $11) 28... Kg8 29. Nxf8 Qxf8 30. Qe4 $16) 27. Qxf5+ Rxf5 28. Ne5 Rc8 29. Rb1 (29. Rd1 $17 {is a better defense.} Bxe5 30. fxe5) 29... Bxe5 30. fxe5 Rxe5 {[%mdl 4096] Endgame. KRR-KRB} 31. Rb7+ Kg6 32. Rb6+ Kf5 33. Bxh6 d4 34. Kf2 Ke4 35. Bf4 Rd5 ({Don't take} 35... Rh5 36. Re6+ Kd3 37. cxd4) 36. c4 (36. cxd4 $142 c4 (36... cxd4 $2 37. Re6+ Kd3 38. h4 $19) (36... Rxd4 37. Rxa6 c4 38. Re6+ Kd3 39. Re3+ Kc2 40. h4 $17) 37. Rxa6) 36... Rh5 37. h4 {[%cal Of2e2]} Kd3 38. Rxa6 Kxc4 39. Ke2 Kc3 40. Kd1 c4 {[#] Strongly threatening ...Rb5.} 41. Rf6 Rb5 42. Bd2+ Kb2 43. a4 Rb3 {[%cal Oc4c3] ...c3! would now be deadly.} 44. Bc1+ Kb1 {...Rd3+ is the strong threat.} 45. Rf1 Re8 {Weighted Error Value: White=0.91/Black=0.13 (very precise) .  Loses game:     	White=1     	---        Mistake:       	White=4     	Black=2      Inaccurate:     	White=4     	Black=1      OK:         	White=4     	Black=12     Best:        	---       	Black=1      Strong:       	---       	Black=1} 0-1

[Event "45th FIDE Womens Olympiad 2024"]
[Site "Budapest"]
[Date "2024.09.16"]
[Round "6.60"]
[White "Ciolacu, Alessia-Mihaela"]
[Black "Bochnickova, Simona"]
[Result "0-1"]
[ECO "A37"]
[WhiteElo "2160"]
[BlackElo "2138"]
[Annotator "ChessBase"]
[PlyCount "73"]
[EventDate "2024.09.05"]
[EventType "team-tourn"]
[EventCountry "HUN"]
[SourceTitle "playchess.com"]
[Source "ChessBase"]
[SourceQuality "1"]
[WhiteTeam "Romania"]
[BlackTeam "Slovakia"]
[WhiteTeamCountry "ROU"]
[BlackTeamCountry "SVK"]
[TimeControl "40/5400+30:1800+30"]

1. c4 c5 2. Nf3 Nc6 3. g3 g6 4. Bg2 Bg7 5. Nc3 e5 6. O-O Nge7 7. a3 O-O 8. d3 d6 9. Rb1 f5 10. Bd2 h6 11. Ne1 Rb8 12. b4 b6 13. Nd5 Nd4 14. f4 Ne6 15. Nc2 exf4 16. gxf4 Nc7 17. b5 Nexd5 18. cxd5 a6 19. bxa6 Bxa6 20. a4 b5 21. axb5 Nxb5 22. Rb3 Qe7 23. e3 Rb7 24. Kh1 Rfb8 25. Re1 Nc7 26. Rxb7 Rxb7 27. e4 Bxd3 28. exf5 Qf6 29. fxg6 Qxg6 30. Ne3 Be4 31. Rg1 Rb1 32. Qe2 Bxg2+ 33. Qxg2 Rxg1+ 34. Kxg1 Qb1+ 35. Qf1 Qe4 36. Qg2 Qxf4 37. Qh3 0-1